fUSD/lending_fUSD_20250125
["ID","MTS","AMOUNT","RATE_DAILY","PERIOD"]
[350291665,1737772247922,-1037.96453693,0.00021998,2]
[350291666,1737772247932,-500.0,0.00021998,2]
[350291667,1737772247941,-500.0,0.00021998,2]
[350291668,1737772247950,-500.0,0.00021998,2]
[350291669,1737772247960,-520.17423376,0.00021998,2]
[350291670,1737772247969,-500.0,0.00021998,2]
[350291671,1737772247979,-714.31,0.00021998,2]
[350291672,1737772247988,-500.0,0.00021998,2]
[350291673,1737772247997,-500.0,0.00021998,2]
[350291674,1737772248007,-500.0,0.00021998,2]
[350291675,1737772248016,-500.0,0.00021998,2]
[350291676,1737772248026,-500.0,0.00021998,2]
[350291677,1737772248035,-503.99771014,0.00021998,2]
[350291678,1737772248045,-517.17528307,0.00021998,2]
[350291679,1737772248057,-696.03,0.00021998,2]
[350291680,1737772248067,-500.0,0.00021998,2]
[350291681,1737772248079,-500.0,0.00021998,2]
[350291682,1737772248088,-500.0,0.00021998,2]
[350291683,1737772248098,-537.68047674,0.00021998,2]
[350291684,1737772248108,-500.0,0.00021998,2]
[350291685,1737772248119,-500.0,0.00021998,2]
[350291686,1737772248129,-500.0,0.00021998,2]
[350291687,1737772248140,-515.62557735,0.00021998,2]
[350291688,1737772248150,-498.59410724,0.00021998,2]
[350291689,1737772248160,-500.0,0.00021998,2]
[350291690,1737772248169,-500.0,0.00021998,2]
[350291691,1737772248180,-500.0,0.00021998,2]
[350291692,1737772248189,-500.0,0.00021998,2]
[350291693,1737772248199,-507.88325956,0.00021998,2]
[350291694,1737772248209,-412.56397371,0.00021998,2]
[350291695,1737772248219,-514.46596399,0.00021998,2]
[350291696,1737772248229,-500.0,0.00021998,2]
[350291697,1737772248239,-500.0,0.00021998,2]
[350291698,1737772248250,-500.0,0.00021998,2]
[350291699,1737772248259,-501.56469815,0.00021998,2]
[350291700,1737772248269,-500.0,0.00021998,2]
[350291701,1737772248279,-500.0,0.00021998,2]
[350291702,1737772248289,-500.0,0.00021998,2]
[350291703,1737772248301,-500.0,0.00021998,2]
[350291704,1737772248311,-503.54665462,0.00021998,2]
[350291705,1737772248321,-500.0,0.00021998,2]
[350291706,1737772248332,-500.0,0.00021998,2]
[350291707,1737772248342,-500.0,0.00021998,2]
[350291708,1737772248353,-507.53863179,0.00021998,2]
[350291709,1737772248363,-500.0,0.00021998,2]
[350291710,1737772248374,-500.0,0.00021998,2]
[350291711,1737772248384,-500.0,0.00021998,2]
[350291712,1737772248394,-531.5484462,0.00021998,2]
[350291713,1737772248404,-219.82624979,0.00021998,2]
[350291714,1737772248414,-500.0,0.00021998,2]
[350291715,1737772248424,-505.92889864,0.00021998,2]
[350291716,1737772248434,-2000.0,0.00021999,2]
[350291717,1737772248444,-2000.0,0.00021999,2]
[350291718,1737772248454,-2000.0,0.00021999,2]
[350291719,1737772248464,-2000.0,0.00021999,2]
[350291720,1737772248473,-2000.0,0.00021999,2]
[350291721,1737772248483,-2000.0,0.00021999,2]
[350291722,1737772248493,-2000.0,0.00021999,2]
[350291723,1737772248503,-502.85328189,0.00021999,2]
[350291724,1737772248513,-500.0,0.00021999,2]
[350291725,1737772248523,-509.87219398,0.00021999,2]
[350291726,1737772248534,-500.0,0.00021999,2]
[350291727,1737772248544,-500.0,0.00021999,2]
[350291728,1737772248556,-495.53330339,0.00021999,2]
[350291729,1737772248566,-500.0,0.00021999,2]
[350291730,1737772248575,-500.0,0.00021999,2]
[350291731,1737772248585,-500.0,0.00021999,2]
[350291732,1737772248595,-500.0,0.00021999,2]
[350291733,1737772248605,-500.0,0.00021999,2]
[350291734,1737772248615,-503.81937368,0.00021999,2]
[350291735,1737772248628,-500.0,0.00021999,2]
[350291736,1737772248638,-502.14220295,0.00021999,2]
[350291737,1737772248650,-500.0,0.00021999,2]
[350291738,1737772248661,-500.0,0.00021999,2]
[350291739,1737772248674,-500.0,0.00021999,2]
[350291740,1737772248683,-500.0,0.00021999,2]
[350291741,1737772248694,-500.0,0.00021999,2]
[350291742,1737772248703,-500.0,0.00021999,2]
[350291743,1737772248713,-500.0,0.00021999,2]
[350291744,1737772248723,-502.12318188,0.00021999,2]
[350291745,1737772248736,-504.89912797,0.00021999,2]
[350291746,1737772248745,-503.67484123,0.00021999,2]
[350291747,1737772248755,-500.0,0.00021999,2]
[350291748,1737772248765,-627.2665543,0.00021999,2]
[350291749,1737772248776,-500.0,0.00021999,2]
[350291750,1737772248785,-500.0,0.00021999,2]
[350291751,1737772248795,-500.0,0.00021999,2]
[350291752,1737772248807,-500.0,0.00021999,2]
[350291753,1737772248817,-500.0,0.00021999,2]
[350291754,1737772248828,-500.0,0.00021999,2]
[350291755,1737772248838,-500.0,0.00021999,2]
[350291756,1737772248848,-500.0,0.00021999,2]
[350291757,1737772248858,-505.29971901,0.00021999,2]
[350291758,1737772248869,-503.06729396,0.00021999,2]
[350291759,1737772248878,-510.0668394,0.00021999,2]
[350291760,1737772248889,-615.00810357,0.00021999,2]
[350291761,1737772248899,-509.08995063,0.00021999,2]
[350291762,1737772248908,-500.0,0.00021999,2]
[350291763,1737772248918,-507.47349704,0.00021999,2]
[350291764,1737772248929,-387.9584602,0.00021999,2]
[350291765,1737772248939,-504.71378151,0.00021999,2]
[350291766,1737772248952,-500.0,0.00021999,2]
[350291767,1737772248963,-500.0,0.00021999,2]
[350291768,1737772248973,-500.0,0.00021999,2]
[350291769,1737772248983,-500.0,0.00021999,2]
[350291770,1737772248993,-500.0,0.00021999,2]
[350291771,1737772249004,-505.06639855,0.00021999,2]
[350291772,1737772249013,-500.0,0.00021999,2]
[350291773,1737772249023,-557.12,0.00021999,2]
[350291774,1737772249033,-500.0,0.00021999,2]
[350291775,1737772249043,-500.0,0.00021999,2]
[350291776,1737772249054,-512.96137373,0.00021999,2]
[350291777,1737772249063,-500.0,0.00021999,2]
[350291778,1737772249074,-500.0,0.00021999,2]
[350291779,1737772249084,-500.0,0.00021999,2]
[350291780,1737772249094,-500.0,0.00021999,2]
[350291781,1737772249104,-500.0,0.00021999,2]
[350291782,1737772249113,-447.37666499,0.00021999,2]
[350291783,1737772249123,-500.0,0.00021999,2]
[350291784,1737772249132,-500.0,0.00021999,2]
[350291785,1737772249142,-500.0,0.00021999,2]
[350291786,1737772249151,-500.0,0.00021999,2]
[350291787,1737772249161,-500.0,0.00021999,2]
[350291788,1737772249171,-500.0,0.00021999,2]
[350291789,1737772249181,-500.0,0.00021999,2]
[350291790,1737772249191,-500.0,0.00021999,2]
[350291791,1737772249200,-500.0,0.00021999,2]
[350291792,1737772249211,-500.0,0.00021999,2]
[350291793,1737772249222,-500.0,0.00021999,2]
[350291794,1737772249232,-500.0,0.00021999,2]
[350291795,1737772249242,-500.0,0.00021999,2]
[350291796,1737772249252,-646.80560777,0.00021999,2]
[350291797,1737772249263,-500.0,0.00021999,2]
[350291798,1737772249273,-500.0,0.00021999,2]
[350291799,1737772249285,-500.0,0.00021999,2]
[350291800,1737772249295,-500.0,0.00021999,2]
[350291801,1737772249306,-500.0,0.00021999,2]
[350291802,1737772249315,-500.0,0.00021999,2]
[350291803,1737772249325,-500.0,0.00021999,2]
[350291804,1737772249335,-500.0,0.00021999,2]
[350291805,1737772249344,-500.0,0.00021999,2]
[350291806,1737772249354,-445.26185929,0.00021999,2]
[350291807,1737772249364,-500.0,0.00021999,2]
[350291808,1737772249374,-508.20618039,0.00021999,2]
[350291809,1737772249383,-500.0,0.00021999,2]
[350291810,1737772249393,-500.0,0.00021999,2]
[350291811,1737772249403,-511.38587034,0.00021999,2]
[350291812,1737772249413,-500.0,0.00021999,2]
[350291813,1737772249422,-500.0,0.00021999,2]
[350291814,1737772249432,-500.0,0.00021999,2]
[350291815,1737772249442,-500.0,0.00021999,2]
[350291816,1737772249451,-500.0,0.00021999,2]
[350291817,1737772249461,-500.0,0.00021999,2]
[350291818,1737772249470,-517.30888034,0.00021999,2]
[350291819,1737772249480,-500.0,0.00021999,2]
[350291820,1737772249489,-514.12516366,0.00021999,2]
[350291821,1737772249505,-500.0,0.00021999,2]
[350291822,1737772249520,-502.69503593,0.00021999,2]
[350291823,1737772249529,-501.03422384,0.00021999,2]
[350291824,1737772249539,-500.0,0.00021999,2]
[350291825,1737772249548,-553.96935956,0.00021999,2]
[350291826,1737772249558,-500.0,0.00021999,2]
[350291827,1737772249567,-500.0,0.00021999,2]
[350291828,1737772249576,-500.0,0.00021999,2]
[350291829,1737772249586,-606.46347784,0.00021999,2]
[350291830,1737772249596,-500.0,0.00021999,2]
[350291831,1737772249605,-591.23639452,0.00021999,2]
[350291832,1737772249614,-600.85390365,0.00021999,2]
[350291833,1737772249624,-500.0,0.00021999,2]
[350291834,1737772249633,-500.0,0.00021999,2]
[350291835,1737772249643,-500.0,0.00021999,2]
[350291836,1737772249653,-509.35940889,0.00021999,2]
[350291837,1737772249662,-510.35664917,0.00021999,2]
[350291838,1737772249672,-512.60227768,0.00021999,2]
[350291839,1737772249683,-500.0,0.00021999,2]
[350291840,1737772249693,-500.0,0.00021999,2]
[350291841,1737772249702,-500.0,0.00021999,2]
[350291842,1737772249712,-522.93733891,0.00021999,2]
[350291843,1737772249721,-449.07289162,0.00021999,2]
[350291844,1737772249733,-500.0,0.00021999,2]
[350291845,1737772249742,-500.0,0.00021999,2]
[350291846,1737772249752,-507.07473333,0.00021999,2]
[350291847,1737772249761,-500.0,0.00021999,2]
[350291848,1737772249771,-381.21662083,0.00021999,2]
[350291849,1737772249782,-500.0,0.00021999,2]
[350291850,1737772249791,-500.0,0.00021999,2]
[350291851,1737772249801,-500.0,0.00021999,2]
[350291852,1737772249946,-500.0,0.00021999,2]
[350291853,1737772249968,-500.0,0.00021999,2]
[350291854,1737772249978,-500.0,0.00021999,2]
[350291855,1737772249988,-500.0,0.00021999,2]
[350291856,1737772249997,-505.85633676,0.00021999,2]
[350291857,1737772250007,-500.0,0.00021999,2]
[350291858,1737772250016,-500.0,0.00021999,2]
[350291859,1737772250026,-512.71431613,0.00021999,2]
[350291860,1737772250035,-500.0,0.00021999,2]
[350291861,1737772250046,-507.00079207,0.00021999,2]
[350291862,1737772250057,-504.57637618,0.00021999,2]
[350291863,1737772250067,-605.12886423,0.00021999,2]
[350291864,1737772250077,-230.67134911,0.00021999,2]
[350291865,1737772250087,-504.12661154,0.00021999,2]
[350291866,1737772250097,-520.87529596,0.00021999,2]
[350291867,1737772250106,-500.0,0.00021999,2]
[350291868,1737772250115,-529.10453969,0.00021999,2]
[350291869,1737772250124,-500.0,0.00021999,2]
[350291870,1737772250135,-500.0,0.00021999,2]
[350291871,1737772250145,-2000.0,0.00021999,30]
[350291872,1737772250155,-500.0,0.00021999,2]
[350291873,1737772250164,-503.21906462,0.00021999,2]
[350291874,1737772250173,-505.75689837,0.00021999,2]
[350291875,1737772250183,-500.0,0.00021999,2]
[350291876,1737772250192,-500.0,0.00021999,2]
[350291877,1737772250201,-500.0,0.00021999,2]
[350291878,1737772250211,-500.0,0.00021999,2]
[350291879,1737772250220,-207.54166419,0.00021999,2]
[350291880,1737772250229,-507.35714828,0.00021999,2]
[350291881,1737772250240,-500.0,0.00021999,2]
[350291882,1737772250250,-500.0,0.00021999,2]
[350291883,1737772250259,-515.50181629,0.00021999,2]
[350291884,1737772250269,-500.0,0.00021999,2]
[350291885,1737772250278,-211.99858958,0.00021999,2]
[350291886,1737772250288,-512.9154201,0.00021999,2]
[350291887,1737772250298,-500.0,0.00021999,2]
[350291888,1737772250309,-563.6243531,0.00021999,2]
[350291889,1737772250318,-502.67480545,0.00021999,2]
[350291890,1737772250327,-530.9219621,0.00021999,2]
[350291891,1737772250337,-500.0,0.00021999,2]
[350291892,1737772250347,-301.84783557,0.00021999,2]
[350291893,1737772250358,-513.48475492,0.00021999,2]
[350291894,1737772250368,-500.0,0.00021999,2]
[350291895,1737772250378,-39220.7,0.00021999,2]
[350291896,1737772250388,-500.0,0.00021999,2]
[350291897,1737772250398,-500.0,0.00021999,2]
[350291898,1737772250407,-500.0,0.00021999,2]
[350291899,1737772250417,-514.90755289,0.00021999,2]
[350291900,1737772250426,-585.38940027,0.00021999,2]
[350291901,1737772250435,-307.63456473,0.00021999,2]
[350291902,1737772250445,-500.0,0.00021999,2]
[350291903,1737772250454,-474.50723661,0.00021999,2]
[350291904,1737772250464,-500.0,0.00021999,2]
[350291905,1737772250474,-500.0,0.00021999,2]
[350291906,1737772250483,-500.0,0.00021999,2]
[350291907,1737772250492,-500.0,0.00021999,2]
[350291908,1737772250501,-527.56167388,0.00021999,2]
[350291909,1737772250511,-500.0,0.00021999,2]
[350291910,1737772250521,-505.60944583,0.00021999,2]
[350291911,1737772250531,-233.29664698,0.00021999,2]
[350291912,1737772250540,-518.20944758,0.00021999,2]
[350291913,1737772250550,-507.51627286,0.00021999,2]
[350291914,1737772250561,-1999.0,0.00021999,2]
[350291915,1737772250571,-1999.0,0.00021999,2]
[350291916,1737772250580,-1999.0,0.00021999,2]
[350291917,1737772250589,-1999.0,0.00021999,2]
[350291918,1737772250599,-1999.0,0.00021999,2]
[350291919,1737772250609,-1999.0,0.00021999,2]
[350291920,1737772250618,-1999.0,0.00021999,2]
[350291921,1737772250627,-1999.0,0.00021999,2]
[350291922,1737772250636,-1999.0,0.00021999,2]
[350291923,1737772250646,-1999.0,0.00021999,2]
[350291924,1737772250655,-1999.0,0.00021999,2]
[350291925,1737772250664,-1999.0,0.00021999,2]
[350291926,1737772250673,-1999.0,0.00021999,2]
[350291927,1737772250683,-1999.0,0.00021999,2]
[350291928,1737772250692,-1999.0,0.00021999,2]
[350291929,1737772250702,-1999.0,0.00021999,2]
[350291930,1737772250711,-1999.0,0.00021999,2]
[350291931,1737772250721,-1999.0,0.00021999,2]
[350291932,1737772250731,-1999.0,0.00021999,2]
[350291933,1737772250742,-1938.92711932,0.00021999,2]
[350291934,1737772250751,-500.0,0.00021999,2]
[350291935,1737772250761,-500.0,0.00021999,2]
[350291936,1737772250770,-500.0,0.00021999,2]
[350291937,1737772250780,-500.0,0.00021999,2]
[350291938,1737772250790,-500.0,0.00021999,2]
[350291939,1737772250799,-500.0,0.00021999,2]
[350291940,1737772250812,-300.0,0.00021999,2]
[350291941,1737772250821,-30130.72892011,0.00021999,2]
[350291942,1737772250831,-500.0,0.00021999,2]
[350291943,1737772250840,-505.91385838,0.00021999,2]
[350291944,1737772250849,-500.0,0.00021999,2]
[350291945,1737772250859,-512.40956443,0.00021999,2]
[350291946,1737772250868,-500.0,0.00021999,2]
[350291947,1737772250878,-500.0,0.00021999,2]
[350291948,1737772250889,-500.0,0.00021999,2]
[350291949,1737772250899,-513.39837964,0.00021999,2]
[350291950,1737772250910,-505.85042708,0.00021999,2]
[350291951,1737772250919,-502.43302838,0.00021999,2]
[350291952,1737772250928,-500.0,0.00021999,2]
[350291953,1737772250940,-511.4542972,0.00021999,2]
[350291954,1737772250950,-508.40267653,0.00021999,2]
[350291955,1737772250959,-507.62726603,0.00021999,2]
[350291956,1737772250969,-512.04255573,0.00021999,2]
[350291957,1737772250979,-514.20550079,0.00021999,2]
[350291958,1737772250989,-506.48750505,0.00021999,2]
[350291959,1737772251000,-500.0,0.00021999,2]
[350291960,1737772251010,-509.36157092,0.00021999,2]
[350291961,1737772251019,-507.60088767,0.00021999,2]
[350291962,1737772251029,-512.02001611,0.00021999,2]
[350291963,1737772251039,-500.0,0.00021999,2]
[350291964,1737772251048,-517.58227366,0.00021999,2]
[350291965,1737772251058,-500.0,0.00021999,2]
[350291966,1737772251068,-500.0,0.00021999,2]
[350291967,1737772251077,-500.0,0.00021999,2]
[350291968,1737772251086,-500.0,0.00021999,2]
[350291969,1737772251095,-502.48281567,0.00021999,2]
[350291970,1737772251106,-502.89837272,0.00021999,2]
[350291971,1737772251115,-500.0,0.00021999,2]
[350291972,1737772251125,-500.0,0.00021999,2]
[350291973,1737772251135,-500.0,0.00021999,2]
[350291974,1737772251145,-505.73971225,0.00021999,2]
[350291975,1737772251155,-500.0,0.00021999,2]
[350291976,1737772251164,-597.71424144,0.00021999,2]
[350291977,1737772251174,-505.65374702,0.00021999,2]
[350291978,1737772251183,-525.42624158,0.00021999,2]
[350291979,1737772251193,-513.57307579,0.00021999,2]
[350291980,1737772251205,-500.0,0.00021999,2]
[350291981,1737772251216,-500.0,0.00021999,2]
[350291982,1737772251225,-502.42391245,0.00021999,2]
[350291983,1737772251235,-504.87253239,0.00021999,2]
[350291984,1737772251245,-500.0,0.00021999,2]
[350291985,1737772251255,-500.0,0.00021999,2]
[350291986,1737772251267,-508.8033101,0.00021999,2]
[350291987,1737772251276,-505.47653232,0.00021999,2]
[350291988,1737772251286,-500.0,0.00021999,2]
[350291989,1737772251296,-503.24812449,0.00021999,2]
[350291990,1737772251307,-500.0,0.00021999,2]
[350291991,1737772251316,-1374.97,0.00021999,2]
[350291992,1737772251325,-692.33921798,0.00021999,2]
[350291993,1737772251335,-500.0,0.00021999,2]
[350291994,1737772251345,-500.0,0.00021999,2]
[350291995,1737772251354,-500.0,0.00021999,2]
[350291996,1737772251364,-502.94960837,0.00021999,2]
[350291997,1737772251374,-500.0,0.00021999,2]
[350291998,1737772251384,-152.95194885,0.00021999,2]
[350291999,1737772251395,-500.0,0.00021999,2]
[350292000,1737772251405,-987.0,0.00022,2]
[350292001,1737772251414,-128219.12273004,0.00022,2]
[350292002,1737772251424,-700.0,0.00022,8]
[350292003,1737772251433,-700.0,0.00022,8]
[350292004,1737772251443,-700.0,0.00022,8]
[350292005,1737772251452,-507.51937713,0.00022,8]
[350292006,1737772251462,-15592756.25125072,0.00022,2]
[350292007,1737772251472,-245.64278273,0.00022,2]
[350292008,1737772251483,-133361.531526,0.00022,2]
[350292009,1737772251492,-756.24330911,0.00022,7]
[350292010,1737772251502,-250.0,0.00022,2]
[350292011,1737772251511,-250.0,0.00022,2]
[350292012,1737772251522,-250.0,0.00022,2]
[350292013,1737772251531,-250.0,0.00022,2]
[350292014,1737772251541,-250.0,0.00022,2]
[350292015,1737772251551,-250.0,0.00022,2]
[350292016,1737772251562,-250.0,0.00022,2]
[350292017,1737772251571,-250.0,0.00022,2]
[350292018,1737772251580,-250.0,0.00022,2]
[350292019,1737772251589,-250.0,0.00022,2]
[350292020,1737772251599,-250.0,0.00022,2]
[350292021,1737772251608,-250.0,0.00022,2]
[350292022,1737772251618,-250.0,0.00022,2]
[350292023,1737772251627,-250.0,0.00022,2]
[350292024,1737772251635,-250.0,0.00022,2]
[350292025,1737772251645,-250.0,0.00022,2]
[350292026,1737772251654,-251.5,0.00022,2]
[350292027,1737772251663,-212.0,0.00022,2]
[350292028,1737772251672,-235.0,0.00022,2]
[350292029,1737772251682,-206.0,0.00022,2]
[350292030,1737772251691,-2032.31,0.00022,3]
[350292031,1737772251700,-952.33,0.00022,2]
[350292032,1737772251709,-2160.0,0.00022,2]
[350292033,1737772251719,-805.27320871,0.00022,2]
[350292034,1737772251729,-200.0,0.00022,2]
[350292035,1737772251741,-1880.49376852,0.00022,2]
[350292036,1737772251751,-200.0,0.00022,2]
[350292037,1737772251761,-1456.11979,0.00022,2]
[350292038,1737772251771,-500.23907256,0.00022,2]
[350292039,1737772251781,-58132.32220116,0.00022,2]
[350292040,1737772251790,-7591.54564276,0.00022,2]
[350292041,1737772251800,-159.0,0.00022,6]
[350292042,1737772251812,-1000.0,0.00022,2]
[350292043,1737772251822,-2855959.06337788,0.00022,2]
[350292044,1737772251982,-641.17075531,0.00022,2]
[350292045,1737772251993,-4969.168468,0.00022,2]
[350292046,1737772252004,-442.20931429,0.00022,2]
[350292047,1737772252015,-11341.45376007,0.00022,2]
[350292048,1737772252031,-4203.85576972,0.00022,2]
[350292049,1737772252042,-386.50409084,0.00022,2]
[350292050,1737772252053,-1290.0,0.00022,2]
[350292051,1737772252100,-500.0,0.00016438,2]
[350292052,1737772252110,-500.0,0.00016438,2]
[350292053,1737772252119,-275.90962421,0.00016575,2]
[350292054,1737772252128,-273.59659767,0.00016575,2]
[350292055,1737772252138,-502.05907416,0.00021998,2]
[350292056,1737772252147,-26579.41724576,0.00022,2]
[350292057,1737772252157,-22494.45945824,0.00022,5]
[350292058,1737772252168,-1364.74763806,0.00022,5]
[350292059,1737772252178,-6462.98271194,0.00022,2]
[350292060,1737772252190,-931.12809784,0.00022,2]
[350292061,1737772252209,-277.45127565,0.00022,2]
[350292062,1737772252220,-306.94443232,0.00022,2]
[350292063,1737772252238,-659.885,0.00015961,2]
[350292064,1737772252550,-982.49833865,0.00015961,2]
[350292065,1737772252561,-533.74676829,0.00016438,2]
[350292066,1737772252571,-500.0,0.00016438,2]
[350292067,1737772252580,-500.0,0.00016438,2]
[350292068,1737772252590,-530.51002123,0.00016575,2]
[350292069,1737772252599,-500.0,0.00016575,2]
[350292070,1737772252609,-152.43537285,0.000199,2]
[350292071,1737772252619,-3820.13146719,0.00021066,2]
[350292072,1737772252628,-500.0,0.00021998,2]
[350292073,1737772252637,-143170.6004722,0.00022,2]
[350292074,1737772252656,-451.76455027,0.00016712,2]
[350292075,1737772252667,-48.23544973,0.00016712,2]
[350292076,1737772252676,-3351.76425027,0.00022,2]
[350292077,1737772252762,-352.0092576,0.00016438,2]
[350292078,1737772252773,-155.87410443,0.00016438,2]
[350292079,1737772252784,-500.0,0.00016438,2]
[350292080,1737772252793,-145.41911721,0.00016849,2]
[350292081,1737772253093,-552.90389661,0.00016575,2]
[350292082,1737772253103,-354.58088279,0.00016849,2]
[350292083,1737772253112,-500.0,0.00016986,2]
[350292084,1737772253121,-500.0,0.00017123,2]
[350292085,1737772253130,-500.0,0.0001726,2]
[350292086,1737772253139,-500.0,0.00017397,2]
[350292087,1737772253148,-153.6863013,0.00017534,2]
[350292089,1737772514411,709.0,0.00022,120]
[350292097,1737772897900,-1542.122901,9.738e-05,2]
[350292098,1737772897923,-166.2,9.787e-05,2]
[350292099,1737772897947,-300.0,9.999e-05,2]
[350292100,1737772897972,-176.47450767,0.0001,2]
[350292101,1737772897994,-50000.0,0.0001,2]
[350292102,1737772898018,-2852.28122245,0.0001,2]
[350292103,1737772898039,-300.0,0.00010034,2]
[350292104,1737772898064,-150.0,0.00010034,2]
[350292105,1737772898087,-166.66666666,0.00010036,2]
[350292106,1737772898109,-767.31,0.00010155,2]
[350292107,1737772898131,-420.0,0.00010999,2]
[350292108,1737772898154,-255.0,0.00011037,2]
[350292109,1737772898176,-151.0,0.00011962,2]
[350292110,1737772898199,-200.0,0.00011969,2]
[350292111,1737772898220,-250.0,0.00011981,2]
[350292112,1737772898243,-23900.0,0.00011984,2]
[350292113,1737772898265,-996.62,0.00011997,2]
[350292114,1737772898286,-466.31,0.00012046,2]
[350292115,1737772898308,-587.0,0.00012099,2]
[350292116,1737772898330,-2123.95,0.00012143,2]
[350292117,1737772898352,-166.2,0.00012234,2]
[350292118,1737772898375,-173.48,0.00012329,2]
[350292119,1737772898402,-767.31,0.00012418,2]
[350292127,1737773179144,500.77,0.00012,2]
[350292128,1737773212384,500.0,0.00012,2]
[350292129,1737773218485,500.0,0.00012,2]
[350292130,1737773227241,-182.99,0.00012509,2]
[350292131,1737773227263,-35.84925096,0.00012839,2]
[350292132,1737773233078,-356.50526998,0.00012839,2]
[350292145,1737773333359,160.17,0.00010137,2]
[350292150,1737773348085,-551.83547906,0.00012839,2]
[350292151,1737773348106,-458.17,0.00013019,2]
[350292152,1737773348132,-131.46941494,0.00013699,2]
[350292153,1737773353082,-142.81058506,0.00013699,2]
[350292154,1737773353102,-150.0,0.00013753,2]
[350292155,1737773353123,-1528.47306094,0.00013781,7]
[350292156,1737773358097,-909.0888562,0.00013781,7]
[350292158,1737773362081,-7514.9391965,0.00013781,7]
[350292159,1737773362105,-9677.4828541,0.00013781,7]
[350292160,1737773362126,-8598.43646507,0.00013781,7]
[350292161,1737773362151,-1000.0,0.00013793,2]
[350292162,1737773362174,-1852.42,0.00013991,2]
[350292163,1737773362194,-254.87,0.00014063,2]
[350292164,1737773362217,-274.28,0.00014384,2]
[350292165,1737773362237,-16453.03,0.000145,2]
[350292166,1737773362261,-250.0,0.00014509,2]
[350292167,1737773362283,-166.2,0.00014681,2]
[350292168,1737773362305,-767.31,0.00014682,2]
[350292169,1737773362326,-685.33,0.0001492,2]
[350292170,1737773362348,-8932.6,0.00015024,2]
[350292171,1737773362369,-274.28,0.00015068,2]
[350292172,1737773362391,-250.0,0.0001507,2]
[350292173,1737773362412,-200.0,0.00015073,2]
[350292174,1737773362435,-5343.78,0.00015129,2]
[350292175,1737773362459,-1215.96,0.00015258,2]
[350292176,1737773362481,-1000.0,0.00015517,2]
[350292177,1737773362503,-274.28,0.00015753,2]
[350292178,1737773362523,-2651.74977431,0.0001579,2]
[350292179,1737773431637,-54563.83636164,0.0001579,2]
[350292180,1737773431649,-6511.41386405,0.0001579,2]
[350292181,1737773431659,-503.6,0.00015908,2]
[350292182,1737773431668,-11755.06479014,0.00016082,2]
[350292185,1737773432201,-5663.9153057,0.00016082,2]
[350292187,1737773432210,-4082.0,0.000161,2]
[350292189,1737773432219,-24975.95891187,0.00016338,2]
[350292191,1737773432229,-5558.0,0.000164,3]
[350292193,1737773432238,-239.05,0.00016428,2]
[350292194,1737773432250,-500.0,0.00016438,2]
[350292196,1737773432259,-514.19833753,0.00016438,2]
[350292198,1737773432270,-500.0,0.00016438,2]
[350292199,1737773432280,-512.25839942,0.00016438,2]
[350292201,1737773432289,-500.0,0.00016438,2]
[350292203,1737773432299,-500.0,0.00016438,2]
[350292205,1737773432307,-159.9885794,0.00016438,2]
[350292207,1737773432316,-513.32638972,0.00016438,2]
[350292209,1737773432326,-500.0,0.00016438,2]